Cogmind - Beta 11.1 @@@ ROGUE MODE // 2022.04.28 @ 08:41:44 Player: Benkyo Result: Escaped! Performance ------------- Evolutions (9) 4500 Regions Visited (23) 4600 Robots Destroyed (90) 450 Value Destroyed (2048) 2048 Prototype IDs (247) 4940 Alien Tech Used (4) 800 Bonus (13461) 13461 TOTAL SCORE: 30799 Bonus ------- High Alert Combat Kills 61 Entered DSFs 500 Aligned with FarCom 300 Met Data Miner 300 Used Data Conduit 3000 Met Zhirov 300 Found Hidden Lab 3000 Decrypted A0 Command 3000 Win 3000 Cogmind --------- Core Integrity 1600/1600 Matter 238/300 Energy 218/220 System Corruption 0% Temperature Warm (122) Movement Flying (29) Location To Epsilon Eridani Parts ------- > --- POWER (2) -------- Light Antimatter Reactor Micro Antimatter Reactor > --- PROPULSION (9) --- Improved VTOL Module Nuclear Pulse Array Flying Fortress v7 Q-thruster Q-thruster > --- UTILITY (12) ----- High-capacity Storage Unit Structural Scanner Advanced Visual Processing Unit Advanced Signal Interpreter Precision Energy Filter Experimental Transmission Jammer Improved Propulsion Shielding Improved Hacking Suite System Mapper Deep Network Scanner Experimental System Shield Improved Corruption Screen > --- WEAPON (3) ------- Null Cannon > --- INVENTORY (20) --- Improved VTOL Module Nuclear Pulse Array Medium Storage Unit Advanced Energy Well (500) Advanced Target Analyzer Quantum Capacitor Advanced Reaction Control System SHELL Armor Transdimensional Reconstructor Potential Cannon Perforator Neutron Missile Launcher Neutron Missile Launcher Peak State ------------ > --- POWER ------------ Light Antimatter Reactor Micro Antimatter Reactor > --- PROPULSION ------- Improved VTOL Module Nuclear Pulse Array Flying Fortress v7 Q-thruster Q-thruster > --- UTILITY ---------- High-capacity Storage Unit Structural Scanner Advanced Visual Processing Unit Advanced Signal Interpreter Precision Energy Filter Experimental Transmission Jammer Improved Propulsion Shielding Improved Hacking Suite System Mapper Deep Network Scanner Experimental System Shield Improved Corruption Screen > --- WEAPON ----------- Null Cannon > --- INVENTORY -------- Improved VTOL Module Nuclear Pulse Array Medium Storage Unit Advanced Energy Well Advanced Target Analyzer Quantum Capacitor Advanced Reaction Control System SHELL Armor Transdimensional Reconstructor Potential Cannon Perforator Neutron Missile Launcher Neutron Missile Launcher [Rating: 175] Favorites ----------- Power Ion Engine Engine Ion Engine Reactor Micro Antimatter Reactor Propulsion Compact Wheel Treads Light Treads Leg Aluminum Leg Wheel Compact Wheel Flight Unit Improved VTOL Module Utility High-capacity Storage Unit Device Improved Sensor Array Storage High-capacity Storage Unit Processor Visual Processing Unit Hackware Makeshift Hacking Suite Protection Medium Armor Plating Weapon Heavy Mace Energy Gun Improved Medium Laser Energy Cannon Heavy Phase Cannon Ballistic Gun Assault Rifle Ballistic Cannon Flak Cannon Launcher Micro-nuke Launcher Special Weapon Improved Plasma Cutter Impact Weapon Heavy Mace Slashing Weapon Katana Build | -11 -10 -10 -10 -9 -8 -7 -7 -7 -6 -6 -6 -5 -4 -4 -4 -4 -3 -3 -3 -3 -2 -2 -1 ------- Run | Scr Mat Min Exi Min Mat Fac Low Dat Pro Fac DSF Fac Fac Upp Upp Zhi Pro Res Arm Lab Res Tes Acc Slots Evolved 18 | . . . . . 4 2 . . . 2 . 2 2 . . . . 2 . . 2 . 2 Power 1 | . . . . . . . . . . . . . 1 . . . . . . . . . . Propulsion 6 | . . . . . 2 2 . . . 1 . 1 . . . . . . . . . . . Utility 10 | . . . . . 2 . . . . 1 . 1 1 . . . . 2 . . 1 . 2 Weapon 1 | . . . . . . . . . . . . . . . . . . . . . 1 . . Parts Attached 126 | 2 9 13 3 . 34 9 4 1 3 2 . 7 1 1 . 4 4 10 . 7 3 5 4 Power 10 | . 1 1 . . 2 . . . 1 . . 1 . . . 1 1 1 . . . 1 . Engine 8 | . 1 1 . . 2 . . . 1 . . 1 . . . 1 1 . . . . . . Core . | . . . . . . . . . . . . . . . . . . . . . . . . Reactor 2 | . . . . . . . . . . . . . . . . . . 1 . . . 1 . Propulsion 33 | . 5 8 . . 10 3 1 . . 1 . 1 . . . . 1 1 . 1 . . 1 Treads 6 | . . 4 . . 2 . . . . . . . . . . . . . . . . . . Leg 3 | . 3 . . . . . . . . . . . . . . . . . . . . . . Wheel 14 | . 2 4 . . 8 . . . . . . . . . . . . . . . . . . Hover . | . . . . . . . . . . . . . . . . . . . . . . . . Flight 10 | . . . . . . 3 1 . . 1 . 1 . . . . 1 1 . 1 . . 1 Utility 44 | 1 2 2 1 . 7 2 3 1 1 1 . 4 1 1 . 1 . 7 . 3 2 1 3 Device 17 | 1 . . . . . 1 2 . 1 . . 2 . 1 . 1 . 4 . 1 1 1 1 Storage 3 | . 2 . 1 . . . . . . . . . . . . . . . . . . . . Processor 6 | . . . . . 1 1 1 . . 1 . 1 . . . . . . . . . . 1 Hackware 7 | . . . . . . . . . . . . 1 1 . . . . 3 . . 1 . 1 Protection 11 | . . 2 . . 6 . . 1 . . . . . . . . . . . 2 . . . Artifact . | . . . . . . . . . . . . . . . . . . . . . . . . Weapon 39 | 1 1 2 2 . 15 4 . . 1 . . 1 . . . 2 2 1 . 3 1 3 . Energy Gun 4 | . . 1 1 . 2 . . . . . . . . . . . . . . . . . . Energy Cannon 9 | . . . . . 1 2 . . . . . 1 . . . . 1 1 . 1 . 2 . Ballistic Gun 9 | 1 1 1 1 . 5 . . . . . . . . . . . . . . . . . . Ballistic Cannon 2 | . . . . . 1 . . . . . . . . . . . . . . . . 1 . Launcher 3 | . . . . . . . . . . . . . . . . . 1 . . 1 1 . . Special Weapon 1 | . . . . . . . . . . . . . . . . 1 . . . . . . . Impact Weapon 8 | . . . . . 5 1 . . 1 . . . . . . . . . . 1 . . . Slashing Weapon 3 | . . . . . 1 1 . . . . . . . . . 1 . . . . . . . Piercing Weapon . | . . . . . . . . . . . . . . . . . . . . . . . . Special Melee Weapon . | . . . . . . . . . . . . . . . . . . . . . . . . Unidentified Prototypes 10 | . . . . . . . . . . . . . . . . 1 . . 1 4 1 2 1 Parts Lost 12 | . . 2 . . 5 1 . 1 . . . . . . . . 1 . . . . . 2 Power 1 | . . . . . . . . 1 . . . . . . . . . . . . . . . Propulsion 6 | . . 1 . . 4 . . . . . . . . . . . 1 . . . . . . Utility 1 | . . . . . . . . . . . . . . . . . . . . . . . 1 Weapon 4 | . . 1 . . 1 1 . . . . . . . . . . . . . . . . 1 Highest Loss Streak 3 | . . 1 . . 3 1 . 1 . . . . . . . . 1 . . . . . 2 To Critical Strikes . | . . . . . . . . . . . . . . . . . . . . . . . . Average Slot Usage (%) 89 | . 100 99 71 100 97 73 75 73 76 80 80 81 78 78 78 81 83 80 80 75 75 79 76 Engine 9 | . 14 14 14 14 9 7 7 7 7 6 6 5 5 5 5 7 10 4 4 4 4 . . Treads 4 | . . 14 . . 8 . . . . . . . . . . . . . . . . . . Leg 1 | . 14 . . . . . . . . . . . . . . . . . . . . . . Wheel 13 | . 13 13 28 28 25 1 . . . . . . . . . . . . . . . . . Flight 8 | . . . . . . 21 22 23 23 26 26 29 26 26 26 26 25 20 19 20 20 20 19 Device 5 | . 14 . . . . 6 7 2 6 6 6 10 10 12 15 15 15 18 14 8 8 11 10 Storage 9 | . 14 14 14 14 9 7 7 7 7 6 6 5 5 5 5 5 5 4 4 4 4 4 3 Processor 7 | . . . . . 9 14 15 15 15 20 20 15 10 10 10 10 10 9 9 9 8 8 9 Hackware 2 | . . . . . . . . . . . . 1 10 7 5 5 5 8 14 13 15 12 15 Protection 8 | . . 13 14 14 18 . . 4 . . . . . . . . . . . 1 4 4 3 Energy Gun 4 | . 14 13 . 14 2 . . . . . . . . . . . . . . . . . . Ballistic Gun 7 | . 14 14 . 14 13 3 . . . . . . . . . . . . . . . . . Impact Weapon 2 | . . . . . 1 1 7 4 7 6 6 5 5 5 5 5 5 4 4 3 4 4 1 Slashing Weapon 1 | . . . . . . 6 7 7 7 6 6 4 . . . 1 3 . . . . . . Naked Turns . | . . . . . . . . . . . . . . . . . . . . . . . . Heaviest Build 82 | 13 50 57 57 57 71 66 53 55 51 51 51 66 66 67 67 68 70 71 71 71 71 81 82 Greatest Support 84 | 20 32 40 32 32 48 60 60 60 60 65 65 70 70 70 70 70 70 73 73 81 81 81 84 Greatest Overweight (x) 5 | . 1 1 1 1 5 1 . . . . . . . . . . . . . . . . . Average Overweight (x) . | . . 1 1 1 1 . . . . . . . . . . . . . . . . . . Largest Inventory Capacity 20 | 8 20 20 20 20 20 20 20 20 20 20 20 20 20 20 20 20 20 20 20 20 20 20 20 Average Capacity 19 | 8 14 20 20 20 20 20 20 20 20 20 20 20 20 20 20 20 20 20 20 20 20 20 20 Most Carried 20 | 8 17 20 20 19 20 20 20 20 20 19 20 20 20 20 19 20 20 20 20 20 20 20 20 Average Carried 18 | 7 10 18 19 18 19 18 19 19 19 18 18 19 19 19 19 19 19 19 20 19 19 19 19 Final Capacity 20 | 8 20 20 20 20 20 20 20 20 20 20 20 20 20 20 20 20 20 20 20 20 20 20 20 Final Carried 20 | 8 16 20 18 19 20 19 20 20 20 18 20 20 20 19 19 20 19 20 20 20 20 20 19 Class Distribution -------------------- 57% | Mutant 13% | Scout 8% | Hacker-Scout 7% | Scavenger-Mutant 4% | Scavenger-Scout 3% | Hacker-Ninja Dominant Class ---------------- Mutant | -10/Materials Mutant | -10/Mines Mutant | -10/Exiles Mutant | -9/Mines Mutant | -8/Materials Scout | -7/Factory Scout | -7/Lower Caves Scout | -7/Data Miner Scout | -6/Proximity Caves Scout | -6/Factory Scout | -6/DSF Scavenger-Scout | -5/Factory Hacker-Scout | -4/Factory Hacker-Scout | -4/Upper Caves Scout | -4/Upper Caves Scout | -4/Zhirov Scavenger-Scout | -3/Proximity Caves Hacker-Scout | -3/Research Hacker-Scout | -3/Armory Hacker-Scout | -3/Lab Wizard-Scout | -2/Research Hacker-Ninja | -2/Testing Wizard-Ninja | -1/Access Resources | -11 -10 -10 -10 -9 -8 -7 -7 -7 -6 -6 -6 -5 -4 -4 -4 -4 -3 -3 -3 -3 -2 -2 -1 ----------- Run | Scr Mat Min Exi Min Mat Fac Low Dat Pro Fac DSF Fac Fac Upp Upp Zhi Pro Res Arm Lab Res Tes Acc Matter Collected 2361 | 253 192 241 . 35 1002 26 84 . 21 54 . 14 . 28 15 83 . 105 . . 134 74 . Remotely . | . . . . . . . . . . . . . . . . . . . . . . . . Salvage Created 3206 | 110 275 433 . . 1463 26 20 . . . . 107 . . . 400 59 105 . . 134 74 . Parts 196 | 5 15 33 . . 102 3 4 . . . . 6 . . . 16 4 3 . . 3 2 . Haulers Intercepted 4 | . . . . . 3 . . . . . . 1 . . . . . . . . . . . Recyclers Shooed 2 | . . . . . 2 . . . . . . . . . . . . . . . . . . Parts Field Recycled . | . . . . . . . . . . . . . . . . . . . . . . . . Retrieved Matter . | . . . . . . . . . . . . . . . . . . . . . . . . Parts Self-Destructed 14 | . . . . . . . 5 . . . . . . . . 6 3 . . . . . . Prevented . | . . . . . . . . . . . . . . . . . . . . . . . . Kills | -11 -10 -10 -10 -9 -8 -7 -7 -7 -6 -6 -6 -5 -4 -4 -4 -4 -3 -3 -3 -3 -2 -2 -1 ------- Run | Scr Mat Min Exi Min Mat Fac Low Dat Pro Fac DSF Fac Fac Upp Upp Zhi Pro Res Arm Lab Res Tes Acc Combat Hostiles Destroyed 48 | . 8 9 . . 27 1 1 . . . . . . . . . 2 . . . . . . Melee 8 | . . . . . 6 1 1 . . . . . . . . . . . . . . . . Guns 34 | . 8 9 . . 17 . . . . . . . . . . . . . . . . . . Cannons 2 | . . . . . 2 . . . . . . . . . . . . . . . . . . AOE 2 | . . . . . . . . . . . . . . . . . 2 . . . . . . Classes Destroyed 14 | 2 3 3 . . 4 . 1 . . . . . . . . . . . . . . 1 . Worker 8 | . . 3 . . 5 . . . . . . . . . . . . . . . . . . Builder 3 | . . 1 . . 1 . . . . . . 1 . . . . . . . . . . . Tunneler 7 | 3 . 1 . . 2 1 . . . . . . . . . . . . . . . . . Hauler 4 | . . . . . 3 . . . . . . 1 . . . . . . . . . . . Recycler 5 | 1 . 2 . . 2 . . . . . . . . . . . . . . . . . . Operator 3 | . . . . . 1 . . . . . . . . . . . . 1 . . 1 . . Watcher 11 | . 1 . . . 5 . . . . . . . . . . . . 2 . . 3 . . Swarmer 24 | . 3 6 . . 13 . . . . . . . . . . . 2 . . . . . . Grunt 14 | . 5 2 . . 7 . . . . . . . . . . . . . . . . . . Researcher 1 | . . . . . . . . . . . . . . . . . . . . . . 1 . Sentry 6 | . . . . . 6 . . . . . . . . . . . . . . . . . . Demolisher 2 | . . 1 . . . 1 . . . . . . . . . . . . . . . . . Hunter 1 | . . . . . 1 . . . . . . . . . . . . . . . . . . Thief 1 | . . . . . . . 1 . . . . . . . . . . . . . . . . Best Kill Streak 6 | 2 3 3 . . 6 1 1 . . . . 2 . . . . 2 1 . . 2 1 . Combat Bots Only 5 | . 3 3 . . 5 1 1 . . . . . . . . . 2 . . . . . . Max Kills in Single Turn 2 | 1 1 2 . . 2 1 1 . . . . 1 . . . . 2 1 . . 1 1 . Gunslinging 1 | . . . . . 1 . . . . . . . . . . . . . . . . . . Exploded 2 | . . . . . . . . . . . . . . . . . 2 . . . . . . Melee 1 | . . . . . 1 1 1 . . . . . . . . . . . . . . . . Uniques/NPCs Destroyed . | . . . . . . . . . . . . . . . . . . . . . . . . Combat | -11 -10 -10 -10 -9 -8 -7 -7 -7 -6 -6 -6 -5 -4 -4 -4 -4 -3 -3 -3 -3 -2 -2 -1 -------- Run | Scr Mat Min Exi Min Mat Fac Low Dat Pro Fac DSF Fac Fac Upp Upp Zhi Pro Res Arm Lab Res Tes Acc Damage Taken 3790 | . 395 646 . . 1444 392 38 237 . . 63 . 73 . . . 133 58 78 . 140 . 93 Core 542 | . 77 129 . . 263 15 8 50 . . . . . . . . . . . . . . . Absorbed by Shields . | . . . . . . . . . . . . . . . . . . . . . . . . Redirected to Shielding 59 | . . . . . . . . . . . . . . . . . . . . . 31 . 28 Core Remaining (%) 85 | 100 . . . 17 52 . . . 89 . 100 100 . . . . 100 . . 94 . 100 100 Volleys Fired 268 | 11 34 32 . 1 112 2 . . . . . 4 4 20 . 18 7 1 . . . 15 7 Largest 2 | 2 2 2 . 2 2 1 . . . . . 1 1 1 . 1 1 1 . . . 1 1 Hottest 130 | 70 70 76 . 76 98 100 . . . . . 90 90 90 . 20 90 90 . . . 130 130 Shots Fired 455 | 22 68 64 . 2 221 2 . . . . . 4 4 20 . 18 7 1 . . . 15 7 Gun 361 | 22 68 64 . 2 205 . . . . . . . . . . . . . . . . . . Cannon 70 | . . . . . 16 2 . . . . . 4 4 20 . . 1 1 . . . 15 7 Launcher 6 | . . . . . . . . . . . . . . . . . 6 . . . . . . Special 18 | . . . . . . . . . . . . . . . . 18 . . . . . . . Kinetic 275 | 11 34 33 . 1 195 . . . . . . . . . . . . . . . . 1 . Thermal 174 | 11 34 31 . 1 26 2 . . . . . 4 4 20 . 18 1 1 . . . 14 7 Explosive 6 | . . . . . . . . . . . . . . . . . 6 . . . . . . Electromagnetic . | . . . . . . . . . . . . . . . . . . . . . . . . Robot Hit Streak 12 | 7 8 8 . . 12 . . . . . . . . . . 7 1 . . . . 5 . Robot Miss Streak 9 | 2 2 3 . 2 9 2 . . . . . . . . . 3 2 . . . . 2 . Penetration Max . | . . . . . . . . . . . . . . . . . . . . . . . . Secondary Targets 5 | . . 2 . . 3 . . . . . . . . . . . . . . . . . . Max Gunslinging Chain 1 | . . 1 . . 1 . . . . . . . . . . . . . . . . . . Shots Hit Robots 275 | 16 47 33 . . 143 6 3 1 . . . 4 . . . 12 1 3 . . 5 1 . Core Hits 124 | 5 16 19 . . 63 1 1 . . . . 2 . . . 9 4 1 . . 2 1 . Critical Kills 3 | . . 1 . . 1 . . . . . . . . . . . . . . . . 1 . Critical Parts Destroyed 8 | . . . . . 8 . . . . . . . . . . . . . . . . . . Critical Strikes 17 | . 1 4 . . 9 . . . . . . 1 . . . 1 . . . . . 1 . Burn 4 | . 1 3 . . . . . . . . . . . . . . . . . . . . . Destroy 5 | . . 1 . . 3 . . . . . . . . . . . . . . . . 1 . Smash 6 | . . . . . 6 . . . . . . . . . . . . . . . . . . Sever 2 | . . . . . . . . . . . . 1 . . . 1 . . . . . . . Melee Attacks 122 | . . . . . 37 8 8 1 . . . 8 2 . . . . 14 . 3 19 16 6 Impact 103 | . . . . . 35 1 2 . . . . 5 2 . . . . 14 . 3 19 16 6 Slashing 19 | . . . . . 2 7 6 1 . . . 3 . . . . . . . . . . . Piercing . | . . . . . . . . . . . . . . . . . . . . . . . . Sneak Attacks 10 | . . . . . 4 1 . 1 . . . 2 . . . . . . . . 2 . . Combat Hostiles . | . . . . . . . . . . . . . . . . . . . . . . . . Follow-up Attacks 1 | . . . . . . . . . . . . 1 . . . . . . . . . . . Damage Inflicted 5726 | 236 606 466 . . 2778 235 95 80 . . . 214 . . . 168 257 175 . . 397 19 . Guns 3112 | 236 606 466 . . 1804 . . . . . . . . . . . . . . . . . . Cannons 184 | . . . . . 165 . . . . . . . . . . . . . . . . 19 . Explosions 257 | . . . . . . . . . . . . . . . . . 257 . . . . . . Melee 2005 | . . . . . 809 235 95 80 . . . 214 . . . . . 175 . . 397 . . Ramming . | . . . . . . . . . . . . . . . . . . . . . . . . Kinetic 2291 | 109 267 209 . . 1687 . . . . . . . . . . . . . . . . 19 . Thermal 1173 | 127 339 257 . . 282 . . . . . . . . . . 168 . . . . . . . Explosive 257 | . . . . . . . . . . . . . . . . . 257 . . . . . . Electromagnetic . | . . . . . . . . . . . . . . . . . . . . . . . . Impact 1342 | . . . . . 662 . . . . . . 108 . . . . . 175 . . 397 . . Slashing 663 | . . . . . 147 235 95 80 . . . 106 . . . . . . . . . . . Piercing . | . . . . . . . . . . . . . . . . . . . . . . . . Highest Corruption 5 | . 3 3 3 3 5 . . . . . . . . . . . . . . . 1 1 . Average Corruption 2 | . 2 3 3 3 5 . . . . . . . . . . . . . . . 1 1 . Corruption Purged . | . . . . . . . . . . . . . . . . . . . . . . . . Corruption Blocked . | . . . . . . . . . . . . . . . . . . . . . . . . Effects 31 | . 1 15 6 2 5 . . . . . . . . . . . . . . . . 2 . Message Errors 1 | . . . 1 . . . . . . . . . . . . . . . . . . . . Matter Fused 10 | . 1 6 2 . 1 . . . . . . . . . . . . . . . . . . Heat Flow Errors 6 | . . 3 1 . 2 . . . . . . . . . . . . . . . . . . Energy Discharges 6 | . . 2 1 1 1 . . . . . . . . . . . . . . . . 1 . Data Loss (minor) 3 | . . 2 . 1 . . . . . . . . . . . . . . . . . . . Data Loss (major) 2 | . . . 1 . . . . . . . . . . . . . . . . . . 1 . Misfires 3 | . . 2 . . 1 . . . . . . . . . . . . . . . . . . Overload Shots . | . . . . . . . . . . . . . . . . . . . . . . . . Overflow Damage 826 | . . . . . 431 70 . . . . . 13 . . . 7 28 48 . . 229 . . Projectiles 7 | . . . . . . . . . . . . . . . . 7 . . . . . . . Explosions 28 | . . . . . . . . . . . . . . . . . 28 . . . . . . Melee 791 | . . . . . 431 70 . . . . . 13 . . . . . 48 . . 229 . . Knockbacks 7 | . . . . . 5 . . . . . . . . . . . . 1 . . 1 . . Impact 3 | . . . . . 1 . . . . . . . . . . . . 1 . . 1 . . Kinetic 4 | . . . . . 4 . . . . . . . . . . . . . . . . . . Secondary . | . . . . . . . . . . . . . . . . . . . . . . . . Self-Inflicted Damage 40 | . . . . . . . . . . . . . . . . . 40 . . . . . . Shots 1 | . . . . . . . . . . . . . . . . . 1 . . . . . . Rammed . | . . . . . . . . . . . . . . . . . . . . . . . . Targets Rammed . | . . . . . . . . . . . . . . . . . . . . . . . . Kicked . | . . . . . . . . . . . . . . . . . . . . . . . . Crushed . | . . . . . . . . . . . . . . . . . . . . . . . . Highest Temperature 320 | 36 189 222 280 24 285 24 . . . . . 166 75 320 . . 12 10 . . . 280 311 Average Temperature 75 | 16 72 60 144 13 69 13 . . . . . 112 33 129 . . 9 7 . . . 109 113 Received Heat Transfer 519 | . 189 78 . . 216 . . . . . . . 18 . . . . 18 . . . . . Effects 4 | . . . . . 1 . . . . . . . . . . . . . . . . 2 1 Interference 4 | . . . . . 1 . . . . . . . . . . . . . . . . 2 1 Siege Activations . | . . . . . . . . . . . . . . . . . . . . . . . . Robots Corrupted . | . . . . . . . . . . . . . . . . . . . . . . . . Combat Hostiles . | . . . . . . . . . . . . . . . . . . . . . . . . Parts Fried 19 | . . . . . 12 . . . . . . 1 . . . . . 2 . . 4 . . Impact Corruptions 22 | . . . . . 12 . . . . . . 1 . . . . . 2 . . 7 . . Robots Melted 1 | . . . . . 1 . . . . . . . . . . . . . . . . . . Combat Hostiles 1 | . . . . . 1 . . . . . . . . . . . . . . . . . . Parts Melted 4 | . 2 1 . . 1 . . . . . . . . . . . . . . . . . . Heat Transferred 3246 | 370 1073 851 . . 555 . . . . . . . . . . 397 . . . . . . . Parts Sabotaged . | . . . . . . . . . . . . . . . . . . . . . . . . Parts Stolen . | . . . . . . . . . . . . . . . . . . . . . . . . Parts Stripped . | . . . . . . . . . . . . . . . . . . . . . . . . Power Chain Reactions . | . . . . . . . . . . . . . . . . . . . . . . . . Missiles Intercepted . | . . . . . . . . . . . . . . . . . . . . . . . . Alert | -11 -10 -10 -10 -9 -8 -7 -7 -7 -6 -6 -6 -5 -4 -4 -4 -4 -3 -3 -3 -3 -2 -2 -1 ------- Run | Scr Mat Min Exi Min Mat Fac Low Dat Pro Fac DSF Fac Fac Upp Upp Zhi Pro Res Arm Lab Res Tes Acc Peak Influence 642 | 20 194 216 . . 642 339 . . . . 15 130 113 . . . . 340 178 . 240 348 260 Initial 208 | . 13 44 . . . 196 . . . . . 7 63 . . . . 27 178 . . 135 208 Average 192 | 9 73 83 . . 316 245 . . . . 5 36 82 . . . . 195 178 . 111 241 190 Maximum Alert Level 2 | . . 1 . . 2 1 . . . . . . . . . . . 1 . . 1 1 1 Low Security (%) 56 | 100 100 76 . 100 30 16 . . . 100 100 100 100 . . . . 32 100 . 84 17 34 Level 1 25 | . . 23 . . 22 83 . . . . . . . . . . . 67 . . 15 82 65 Level 2 18 | . . . . . 46 . . . . . . . . . . . . . . . . . . Level 3 . | . . . . . . . . . . . . . . . . . . . . . . . . Level 4 . | . . . . . . . . . . . . . . . . . . . . . . . . Level 5 . | . . . . . . . . . . . . . . . . . . . . . . . . High Security . | . . . . . . . . . . . . . . . . . . . . . . . . Max Security . | . . . . . . . . . . . . . . . . . . . . . . . . Squads Dispatched 11 | . 1 . . . 5 1 . . . . . 1 1 . . . . 1 . . 1 . . Investigation 5 | . 1 . . . 3 . . . . . . 1 . . . . . . . . . . . Extermination . | . . . . . . . . . . . . . . . . . . . . . . . . Reinforcement 6 | . . . . . 2 1 . . . . . . 1 . . . . 1 . . 1 . . Assault . | . . . . . . . . . . . . . . . . . . . . . . . . Garrison . | . . . . . . . . . . . . . . . . . . . . . . . . Intercept . | . . . . . . . . . . . . . . . . . . . . . . . . Searches Triggered . | . . . . . . . . . . . . . . . . . . . . . . . . Construction Impeded . | . . . . . . . . . . . . . . . . . . . . . . . . Haulers Reinforced 1 | . . . . . . 1 . . . . . . . . . . . . . . . . . Active Scanning Responses . | . . . . . . . . . . . . . . . . . . . . . . . . Cargo Convoy Interrupts . | . . . . . . . . . . . . . . . . . . . . . . . . Stealth | -11 -10 -10 -10 -9 -8 -7 -7 -7 -6 -6 -6 -5 -4 -4 -4 -4 -3 -3 -3 -3 -2 -2 -1 --------- Run | Scr Mat Min Exi Min Mat Fac Low Dat Pro Fac DSF Fac Fac Upp Upp Zhi Pro Res Arm Lab Res Tes Acc Distress Signals 5 | . 1 . . . 3 . . . . . . . . . . . . . . . 1 . . Communications Jammed . | . . . . . . . . . . . . . . . . . . . . . . . . Distress Signals . | . . . . . . . . . . . . . . . . . . . . . . . . Times Spotted 135 | . 9 11 . . 44 5 13 4 . . 2 6 3 . 1 . 4 14 1 . 12 3 3 Peak Tracking Total 6 | . 3 3 . . 4 2 6 4 . . 1 4 2 . 1 . 4 6 1 . 5 1 3 Tactical Retreats 17 | . . 1 . . 5 . 4 . . . 1 1 . . . . . 3 . . 1 . 1 Traps | -11 -10 -10 -10 -9 -8 -7 -7 -7 -6 -6 -6 -5 -4 -4 -4 -4 -3 -3 -3 -3 -2 -2 -1 ------- Run | Scr Mat Min Exi Min Mat Fac Low Dat Pro Fac DSF Fac Fac Upp Upp Zhi Pro Res Arm Lab Res Tes Acc Traps Triggered 8 | . 3 . . . 3 1 . . . . 1 . . . . . . . . . . . . Indirectly . | . . . . . . . . . . . . . . . . . . . . . . . . Trap Hack Attempts . | . . . . . . . . . . . . . . . . . . . . . . . . Triggered . | . . . . . . . . . . . . . . . . . . . . . . . . Disarmed . | . . . . . . . . . . . . . . . . . . . . . . . . Reprogrammed . | . . . . . . . . . . . . . . . . . . . . . . . . Reused . | . . . . . . . . . . . . . . . . . . . . . . . . Traps Extracted . | . . . . . . . . . . . . . . . . . . . . . . . . Installed . | . . . . . . . . . . . . . . . . . . . . . . . . Triggered 3 | . . . . . . . . . . . . . . 1 1 . 1 . . . . . . Machines | -11 -10 -10 -10 -9 -8 -7 -7 -7 -6 -6 -6 -5 -4 -4 -4 -4 -3 -3 -3 -3 -2 -2 -1 ---------- Run | Scr Mat Min Exi Min Mat Fac Low Dat Pro Fac DSF Fac Fac Upp Upp Zhi Pro Res Arm Lab Res Tes Acc Machines Disabled 10 | . . . . . . . . . . . . . . . . . . . . 1 1 7 1 Max in Single Turn 1 | . . . . . . . . . . . . . . . . . . . . 1 1 1 1 Machines Sabotaged . | . . . . . . . . . . . . . . . . . . . . . . . . Garrisons Compromised 1 | . . . . . . 1 . . . . . . . . . . . . . . . . . Overloaded Fab Kills . | . . . . . . . . . . . . . . . . . . . . . . . . Hacking | -11 -10 -10 -10 -9 -8 -7 -7 -7 -6 -6 -6 -5 -4 -4 -4 -4 -3 -3 -3 -3 -2 -2 -1 --------- Run | Scr Mat Min Exi Min Mat Fac Low Dat Pro Fac DSF Fac Fac Upp Upp Zhi Pro Res Arm Lab Res Tes Acc Machines Accessed 65 | . 10 1 2 1 13 8 . 4 . 1 . 2 4 . . 5 . 6 . 2 3 1 2 Terminals 37 | . 8 1 . 1 9 5 . . . 1 . 2 2 . . . . 4 . . 1 1 2 Fabricators 4 | . . . . . . 1 . . . . . . 1 . . . . 1 . . 1 . . Repair Stations . | . . . . . . . . . . . . . . . . . . . . . . . . Recycling Units 6 | . 2 . . . 2 1 . . . . . . . . . . . 1 . . . . . Scanalyzers 5 | . . . . . 2 1 . . . . . . 1 . . . . . . . 1 . . Garrison Access . | . . . . . . . . . . . . . . . . . . . . . . . . Total Hacks 262 | . 37 2 2 1 58 21 . 27 . 1 . 8 18 . . 14 . 19 . 20 19 4 11 Successful 188 | . 24 1 2 . 37 10 . 27 . 1 . 5 16 . . 14 . 6 . 20 17 1 7 Failed 73 | . 12 1 . 1 21 11 . . . . . 3 2 . . . . 13 . . 2 3 4 Catastrophic 10 | . 1 . . 1 . 3 . . . . . 1 1 . . . . 2 . . 1 . . Database Lockouts 1 | . 1 . . . . . . . . . . . . . . . . . . . . . . Manual 64 | . 23 2 1 1 21 2 . . . . . 3 2 . . . . 5 . . 3 . 1 Terminals 126 | . 30 2 . 1 29 15 . . . 1 . 8 7 . . . . 14 . . 4 4 11 Fabricators 9 | . . . . . . 2 . . . . . . 1 . . . . 2 . . 4 . . Repair Stations . | . . . . . . . . . . . . . . . . . . . . . . . . Recycling Units 24 | . 7 . . . 12 2 . . . . . . . . . . . 3 . . . . . Scanalyzers 40 | . . . . . 17 2 . . . . . . 10 . . . . . . . 11 . . Garrison Access . | . . . . . . . . . . . . . . . . . . . . . . . . Terminal Hacks 116 | . 13 1 2 . 11 5 . 27 . 1 . 5 4 . . 14 . 3 . 20 2 1 7 Record 35 | . . . 1 . . . . 8 . . . . . . . 6 . . . 20 . . . Part Schematic 22 | . 2 1 . . 1 1 . 10 . . . . 1 . . 4 . . . . . 1 1 Robot Schematic 6 | . . . . . . . . 6 . . . . . . . . . . . . . . . Robot Analysis 3 | . 3 . . . . . . . . . . . . . . . . . . . . . . Prototype ID Bank 16 | . 4 . . . 2 2 . 3 . . . . . . . 4 . . . . . . 1 Open DSF 1 | . . . . . . . . . . 1 . . . . . . . . . . . . . Level Access Points 1 | . . . . . . . . . . . . 1 . . . . . . . . . . . Branch Access Points 5 | . . . . . . 1 . . . . . 1 1 . . . . 1 . . 1 . . Scanalyzer Index 1 | . 1 . . . . . . . . . . . . . . . . . . . . . . Alert Level 1 | . . . . . . . . . . . . . . . . . . . . . . . 1 Unreport Threat 2 | . . . . . 1 . . . . . . . . . . . . . . . . . 1 Locate Traps 8 | . 2 . . . 2 . . . . . . 1 1 . . . . 1 . . 1 . . Recall Investigation 2 | . . . . . 2 . . . . . . . . . . . . . . . . . . Hauler Manifests 4 | . 1 . . . 1 . . . . . . 1 . . . . . . . . . . 1 Registered Components 4 | . . . . . . . . . . . . 1 1 . . . . 1 . . . . 1 Registered Prototypes 1 | . . . . . . . . . . . . . . . . . . . . . . . 1 Zone Layout 3 | . . . . . 2 1 . . . . . . . . . . . . . . . . . EX-Prototype ID Bank 1 | . . . 1 . . . . . . . . . . . . . . . . . . . . Fabricator Hacks 6 | . . . . . . 1 . . . . . . 1 . . . . 1 . . 3 . . Network Status 4 | . . . . . . 1 . . . . . . 1 . . . . 1 . . 1 . . Load Schematic 2 | . . . . . . . . . . . . . . . . . . . . . 2 . . Repair Station Hacks . | . . . . . . . . . . . . . . . . . . . . . . . . Recycling Unit Hacks 6 | . 2 . . . 3 . . . . . . . . . . . . 1 . . . . . Retrieve Matter 2 | . . . . . 1 . . . . . . . . . . . . 1 . . . . . Retrieve Components 4 | . 2 . . . 2 . . . . . . . . . . . . . . . . . . Scanalyzer 39 | . . . . . 16 2 . . . . . . 10 . . . . . . . 11 . . Insert Component 18 | . . . . . 9 2 . . . . . . 3 . . . . . . . 4 . . Analyze 21 | . . . . . 7 . . . . . . . 7 . . . . . . . 7 . . Garrison Access Hacks . | . . . . . . . . . . . . . . . . . . . . . . . . Unauthorized Hacks 21 | . 9 . . . 7 2 . . . . . . 1 . . . . 1 . . 1 . . Terminals 11 | . 5 . . . 2 1 . . . . . . 1 . . . . 1 . . 1 . . Track 1 | . 1 . . . . . . . . . . . . . . . . . . . . . . Assimilate 1 | . . . . . 1 . . . . . . . . . . . . . . . . . . Botnet 8 | . 3 . . . 1 1 . . . . . . 1 . . . . 1 . . 1 . . Operators 1 | . 1 . . . . . . . . . . . . . . . . . . . . . . Fabricators . | . . . . . . . . . . . . . . . . . . . . . . . . Repair Stations . | . . . . . . . . . . . . . . . . . . . . . . . . Recycling Units 10 | . 4 . . . 5 1 . . . . . . . . . . . . . . . . . Reject 3 | . 1 . . . 2 . . . . . . . . . . . . . . . . . . Recyclers 3 | . 1 . . . 1 1 . . . . . . . . . . . . . . . . . Mask 4 | . 2 . . . 2 . . . . . . . . . . . . . . . . . . Scanalyzers . | . . . . . . . . . . . . . . . . . . . . . . . . Garrison Access . | . . . . . . . . . . . . . . . . . . . . . . . . Data Cores Recovered 1 | . . . . . . . . . . . . . . . . . . 1 . . . . . Used . | . . . . . . . . . . . . . . . . . . . . . . . . Hacking Detections 46 | . 8 1 . 1 12 8 . . . . . 2 3 . . . . 6 . . 3 . 2 Full Trace Events 3 | . . . . . 2 . . . . . . 1 . . . . . . . . . . . Feedback Events . | . . . . . . . . . . . . . . . . . . . . . . . . Feedback Blocked . | . . . . . . . . . . . . . . . . . . . . . . . . Robot Schematics Acquired 8 | . . . . . . . . 6 . . . . . . . . . . . . . 2 . Robots Built . | . . . . . . . . . . . . . . . . . . . . . . . . Authchips . | . . . . . . . . . . . . . . . . . . . . . . . . Time . | . . . . . . . . . . . . . . . . . . . . . . . . Total Robot Build Rating . | . . . . . . . . . . . . . . . . . . . . . . . . Part Schematics Acquired 36 | . 2 1 . . 8 1 . 10 . . . . 4 . . 4 . . . . 4 1 1 Parts Built . | . . . . . . . . . . . . . . . . . . . . . . . . Authchips . | . . . . . . . . . . . . . . . . . . . . . . . . Time . | . . . . . . . . . . . . . . . . . . . . . . . . Total Part Build Rating . | . . . . . . . . . . . . . . . . . . . . . . . . Parts Repaired . | . . . . . . . . . . . . . . . . . . . . . . . . Time . | . . . . . . . . . . . . . . . . . . . . . . . . Parts Recycled . | . . . . . . . . . . . . . . . . . . . . . . . . Recycled Matter . | . . . . . . . . . . . . . . . . . . . . . . . . Retrieved Matter 239 | . . . . . 239 . . . . . . . . . . . . . . . . . . Retrieved Components 22 | . 12 . . . 10 . . . . . . . . . . . . . . . . . . Parts Scanalyzed 14 | . . . . . 7 . . . . . . . 3 . . . . . . . 4 . . Part Schematics Acquired 14 | . . . . . 7 . . . . . . . 3 . . . . . . . 4 . . Parts Damaged 2 | . . . . . . . . . . . . . . . . . . . . . 2 . . Bothacking | -11 -10 -10 -10 -9 -8 -7 -7 -7 -6 -6 -6 -5 -4 -4 -4 -4 -3 -3 -3 -3 -2 -2 -1 ------------ Run | Scr Mat Min Exi Min Mat Fac Low Dat Pro Fac DSF Fac Fac Upp Upp Zhi Pro Res Arm Lab Res Tes Acc Used RIF Installer . | . . . . . . . . . . . . . . . . . . . . . . . . Robots Hacked . | . . . . . . . . . . . . . . . . . . . . . . . . Non-combat . | . . . . . . . . . . . . . . . . . . . . . . . . Combat . | . . . . . . . . . . . . . . . . . . . . . . . . Robot Hacks Applied . | . . . . . . . . . . . . . . . . . . . . . . . . Relay Couplers Released . | . . . . . . . . . . . . . . . . . . . . . . . . Fabnet Peak Effective % . | . . . . . . . . . . . . . . . . . . . . . . . . Robots Rewired . | . . . . . . . . . . . . . . . . . . . . . . . . Allies Hacked . | . . . . . . . . . . . . . . . . . . . . . . . . Hacks Repelled . | . . . . . . . . . . . . . . . . . . . . . . . . Allies | -11 -10 -10 -10 -9 -8 -7 -7 -7 -6 -6 -6 -5 -4 -4 -4 -4 -3 -3 -3 -3 -2 -2 -1 -------- Run | Scr Mat Min Exi Min Mat Fac Low Dat Pro Fac DSF Fac Fac Upp Upp Zhi Pro Res Arm Lab Res Tes Acc Total Allies 3 | . . 2 . . 1 . . . . . . . . . . . . . . . . . . Largest Group 2 | . . 2 2 . 1 1 . . . . . . . . . . . . . . . . . Highest-Rated Group 42 | . . 42 42 . 26 26 . . . . . . . . . . . . . . . . . Highest-Rated Ally 31 | . . 31 31 . 26 26 . . . . . . . . . . . . . . . . . Total Orders . | . . . . . . . . . . . . . . . . . . . . . . . . Ally Attacks . | . . . . . . . . . . . . . . . . . . . . . . . . Total Damage . | . . . . . . . . . . . . . . . . . . . . . . . . Kills . | . . . . . . . . . . . . . . . . . . . . . . . . Allies Corrupted . | . . . . . . . . . . . . . . . . . . . . . . . . Allies Melted . | . . . . . . . . . . . . . . . . . . . . . . . . Intel | -11 -10 -10 -10 -9 -8 -7 -7 -7 -6 -6 -6 -5 -4 -4 -4 -4 -3 -3 -3 -3 -2 -2 -1 ------- Run | Scr Mat Min Exi Min Mat Fac Low Dat Pro Fac DSF Fac Fac Upp Upp Zhi Pro Res Arm Lab Res Tes Acc Robot Analysis Total 131 | . 3 . . . . . . 128 . . . . . . . . . . . . . . . Derelict Logs Recovered 5 | . . . . . . . 1 . 2 . . . . . 2 . . . . . . . . Drone Launches . | . . . . . . . . . . . . . . . . . . . . . . . . Drone Recoveries . | . . . . . . . . . . . . . . . . . . . . . . . . Decoded 0b10 Intel 5 | . . . . . . . . . . . 1 4 . . . . . . . . . . . Emergency Access 1 | . . . . . . . . . . . . 1 . . . . . . . . . . . Items 4 | . . . . . . . . . . . 1 3 . . . . . . . . . . . Exploration | -11 -10 -10 -10 -9 -8 -7 -7 -7 -6 -6 -6 -5 -4 -4 -4 -4 -3 -3 -3 -3 -2 -2 -1 ------------- Run | Scr Mat Min Exi Min Mat Fac Low Dat Pro Fac DSF Fac Fac Upp Upp Zhi Pro Res Arm Lab Res Tes Acc Turns Passed 7478 | 75 798 1047 440 72 2306 210 462 37 143 12 36 173 138 233 37 109 108 342 3 122 223 228 124 Spaces Moved 7424 | 31 542 372 373 58 1069 339 698 95 396 33 96 265 179 535 140 171 312 509 2 173 425 339 272 Core . | . . . . . . . . . . . . . . . . . . . . . . . . Treads 83 | . . 46 . . 37 . . . . . . . . . . . . . . . . . . Legs 290 | 31 259 . . . . . . . . . . . . . . . . . . . . . . Wheels 2072 | . 283 326 373 58 1032 . . . . . . . . . . . . . . . . . . Hover . | . . . . . . . . . . . . . . . . . . . . . . . . Flight 4979 | . . . . . . 339 698 95 396 33 96 265 179 535 140 171 312 509 2 173 425 339 272 Fastest Speed 26 | 120 115 115 115 115 95 34 34 34 34 29 29 26 26 26 26 26 26 26 31 28 28 28 28 Average Speed 58 | 120 117 130 115 115 117 36 34 34 34 29 29 26 26 26 26 26 26 28 31 29 28 28 28 Slowest Speed 400 | 120 120 240 115 115 400 114 34 34 34 29 29 26 26 26 26 26 26 31 31 31 28 28 29 Overloaded Moves . | . . . . . . . . . . . . . . . . . . . . . . . . Propulsion Burnouts . | . . . . . . . . . . . . . . . . . . . . . . . . Robots Hopped 14 | . . . . . . . . . . . . 2 4 . . . . 6 . . 1 1 . Cave-ins Triggered 1 | . . . . . 1 . . . . . . . . . . . . . . . . . . Teleports 1 | . . . . . . . . . . . . . . . . . . . 1 . . . . Exploration Rate (%) 45 | 3 93 66 70 20 84 11 63 82 72 2 89 11 6 69 49 60 56 21 1 96 15 47 15 Regions Visited 23 Branch Regions 13 Pre-discovered Areas 31 | . . . 1 . . . . 26 . . . . . . 1 3 . . . . . . . Known Exits Taken 16 | . . . . . . 1 1 1 1 1 . 1 1 1 1 1 1 1 1 1 1 1 . Unknown Exits Taken 6 | 1 1 1 1 1 1 . . . . . . . . . . . . . . . . . . Scrap Searched 13 | . . 2 . 2 . . 2 . 2 . . . . 2 1 . 2 . . . . . . Spaces Dug 121 | . . . . . 17 1 2 . . . . 7 6 20 . . 22 9 . . 7 21 9 Terrain Destroyed 180 | . . . . . 21 29 2 . . . . 7 6 20 . . 49 9 . . 7 21 9 Melee 47 | . . . . . 13 1 2 . . . . 3 2 . . . . 8 . . 7 8 3 Projectile 59 | . . . . . 8 2 . . . . . 4 4 20 . . 1 1 . . . 13 6 AOE 74 | . . . . . . 26 . . . . . . . . . . 48 . . . . . . Terrain Rammed . | . . . . . . . . . . . . . . . . . . . . . . . . Walls Destroyed . | . . . . . . . . . . . . . . . . . . . . . . . . Machines Disabled . | . . . . . . . . . . . . . . . . . . . . . . . . Actions | -11 -10 -10 -10 -9 -8 -7 -7 -7 -6 -6 -6 -5 -4 -4 -4 -4 -3 -3 -3 -3 -2 -2 -1 --------- Run | Scr Mat Min Exi Min Mat Fac Low Dat Pro Fac DSF Fac Fac Upp Upp Zhi Pro Res Arm Lab Res Tes Acc Total 9868 | 46 639 868 390 61 1878 411 910 98 404 34 103 349 258 607 139 197 330 675 3 240 497 431 300 Wait 1716 | 1 28 444 . 2 573 21 191 . . . . 65 74 52 . . 6 126 1 44 41 39 8 Move 7375 | 30 541 371 372 57 1068 338 697 94 395 32 95 260 171 534 139 170 311 498 1 172 422 336 271 Hop 11 | . . . . . . . . . . . . 2 3 . . . . 4 . . 1 1 . Pick Up 113 | 2 15 7 3 1 27 10 5 . 4 . 2 4 2 . . 2 1 10 . 4 5 6 3 Fast Attach 20 | 1 . . . . 8 . 1 . . . . . . . . 2 . 2 . 4 . 2 . Attach 39 | . . 2 2 . 5 7 . . 2 2 . 2 1 . . 1 1 2 . 5 2 2 3 Detach 14 | . . . 2 . . 2 . 1 . . . . . . . 1 . 1 . 3 1 3 . Swap 71 | 1 9 11 1 . 21 2 3 1 1 . . 5 . 1 . 2 3 6 1 . 1 1 1 Drop 102 | . 12 1 10 . 27 8 5 1 2 . . 1 1 . . 1 1 11 . 5 5 10 1 Fire 268 | 11 34 32 . 1 112 2 . . . . . 4 4 20 . 18 7 1 . . . 15 7 Melee 120 | . . . . . 37 8 8 1 . . . 6 2 . . . . 14 . 3 19 16 6 Ram . | . . . . . . . . . . . . . . . . . . . . . . . . Kick . | . . . . . . . . . . . . . . . . . . . . . . . . Crush . | . . . . . . . . . . . . . . . . . . . . . . . . Escape Stasis 19 | . . . . . . 13 . . . . 6 . . . . . . . . . . . . Rewire . | . . . . . . . . . . . . . . . . . . . . . . . . Trap . | . . . . . . . . . . . . . . . . . . . . . . . . Miscellaneous . | . . . . . . . . . . . . . . . . . . . . . . . . Route ------- -11/Scrapyard -10/Materials (discovered 3 exits: [*Mat x2] / *Min) -10/Mines (discovered 3 exits: [*Mat x2] / *Exi) -10/Exiles -9/Mines -8/Materials (discovered 2 exits: *Fac x2) -7/Factory (discovered 4 exits: *Fac / Sto / *Low x2) -7/Lower Caves -7/Data Miner -6/Proximity Caves -6/Factory (discovered 2 exits: Ext / DSF) -6/DSF -5/Factory (discovered 6 exits: *Fac x4 / Upp x2) -4/Factory (discovered 3 exits: *Res / *Upp x2) -4/Upper Caves -4/Upper Caves (discovered 2 exits: Res / *Zhi) -4/Zhirov -3/Proximity Caves -3/Research (discovered 3 exits: *Arm / Qua x2) -3/Armory -3/Lab -2/Research (discovered 2 exits: *Tes x2) -2/Testing -1/Access To Epsilon Eridani History --------- Turn | Location | Event 15 | -11/Scrapyard | Discovered new exit (range 3) 76 | -11/Scrapyard | Entered Materials 325 | -10/Materials | Discovered new exit (range 15) 333 | -10/Materials | Build established: Mutant 493 | -10/Materials | Discovered new exit (range 9) 583 | -10/Materials | Central database locked down 638 | -10/Materials | Discovered new exit (range 10) 874 | -10/Materials | Entered Mines 910 | -10/Mines | Received a Rocket Launcher from a helpful Derelict 938 | -10/Mines | Core integrity fell below 50% 991 | -10/Mines | Discovered new exit (range 5) 1107 | -10/Mines | Assembled infested the area 1112 | -10/Mines | Assisted by a Guerilla fighting off Assembled 1566 | -10/Mines | Core integrity fell below 20% 1799 | -10/Mines | Discovered new exit (range 8) 1909 | -10/Mines | Deemed a non-threat by the Exiles lab entrance 1909 | -10/Mines | Discovered new exit (range 5) 1921 | -10/Mines | Entered Exiles 1921 | -10/Exiles | Accompanied by 2 allies 1951 | -10/Exiles | Led the pair of lost Derelicts to a safe place 1951 | -10/Exiles | Met 8R-AWN 1972 | -10/Exiles | Met EX-HEX 2004 | -10/Exiles | Met EX-BIN 2017 | -10/Exiles | Aligned with FarCom system 2018 | -10/Exiles | Given EX-Vault access code 2044 | -10/Exiles | Opened EX-Vault 2055 | -10/Exiles | Found Flying Fortress v7 2081 | -10/Exiles | Warned to stay clear of 0b10 Research branches 2115 | -10/Exiles | Met EX-DEC 2120 | -10/Exiles | Learned location of Zion (-6) 2180 | -10/Exiles | Found YOLO Cannon 2183 | -10/Exiles | Found Skeleton Box 2349 | -10/Exiles | Discovered new exit (range 10) 2361 | -10/Exiles | Stole three prototypes: Flying Fortress v7, Skeleton Box, YOLO Cannon 2361 | -10/Exiles | Entered Mines 2396 | -9/Mines | Discovered new exit (range 12) 2433 | -9/Mines | Entered Materials 2433 | -8/Materials | Evolved 4 slots: Propulsion x2, Utility x2 2948 | -8/Materials | Discovered new exit (range 14) 2956 | -8/Materials | Build established: Scavenger-Mutant 3765 | -8/Materials | Build established: Mutant 4011 | -8/Materials | Discovered new exit (range 7) 4571 | -8/Materials | Crushed by falling debris 4602 | -8/Materials | Lost 3 parts (3n) 4739 | -8/Materials | Entered Factory 4739 | -7/Factory | Accompanied by 1 ally 4739 | -7/Factory | Evolved 2 slots: Propulsion x2 4741 | -7/Factory | FarCom data flow suspended 4774 | -7/Factory | Identified exit to Storage 4774 | -7/Factory | Identified exit to Lower Caves 4866 | -7/Factory | Discovered new exit (range 16) 4888 | -7/Factory | Identified exit to Factory 4949 | -7/Factory | Entered Lower Caves 4986 | -7/Lower Caves | Encountered a Warlord checkpoint 4987 | -7/Lower Caves | Learned location of 1 exit from Factory 4995 | -7/Lower Caves | Build established: Scout 5408 | -7/Lower Caves | A Derelict revealed a hidden shortcut to meet someone special 5411 | -7/Lower Caves | Identified exit to Data Miner 5411 | -7/Lower Caves | Entered Data Miner 5411 | -7/Data Miner | Discovered new exit (range 6) 5417 | -7/Data Miner | Met Data Miner 5424 | -7/Data Miner | Learned location of Section 7 (-3) 5424 | -7/Data Miner | Acquired the access code to Warlord's prototype stash 5431 | -7/Data Miner | Received God Mode back door access code from Data Miner 5439 | -7/Data Miner | Interfaced with the Data Conduit 5448 | -7/Data Miner | Identified exit to Proximity Caves 5448 | -7/Data Miner | Entered Proximity Caves 5514 | -6/Proximity Caves | Learned Factory non-interactive machine intel 5538 | -6/Proximity Caves | Learned Factory non-interactive machine intel 5578 | -6/Proximity Caves | Discovered exit to Factory (range 6) 5591 | -6/Proximity Caves | Entered Factory 5591 | -6/Factory | Evolved 2 slots: Propulsion x1, Utility x1 5592 | -6/Factory | Identified exit to Extension 5593 | -6/Factory | Loaded intel: 233 machine locations 5594 | -6/Factory | Loaded intel: 182 non-interactive machine locations 5603 | -6/Factory | Identified exit to DSF 5603 | -6/Factory | Entered DSF 5604 | -6/DSF | Loaded intel: 4 machine locations 5627 | -6/DSF | Additional patrols routed to DSF 5634 | -6/DSF | Discovered new exit (range 20) 5639 | -6/DSF | Identified exit to Factory 5639 | -6/DSF | Entered Factory 5639 | -5/Factory | Evolved 2 slots: Propulsion x1, Utility x1 5640 | -5/Factory | Loaded intel: 232 machine locations 5641 | -5/Factory | Loaded intel: 182 non-interactive machine locations 5768 | -5/Factory | Identified exit to Upper Caves 5800 | -5/Factory | Identified exit to Factory 5812 | -5/Factory | Entered another Factory area 5812 | -4/Factory | Evolved 2 slots: Power x1, Utility x1 5813 | -4/Factory | Loaded intel: 284 machine locations 5814 | -4/Factory | Discovered new exit (range 19) 5819 | -4/Factory | Identified exit to Upper Caves 5950 | -4/Factory | Entered Upper Caves 6077 | -4/Upper Caves | Spotted B-86 Titan 6159 | -4/Upper Caves | Discovered new exit (range 7) 6160 | -4/Upper Caves | Identified exit to Upper Caves 6183 | -4/Upper Caves | Entered another Upper Caves area 6183 | -4/Upper Caves | Spotted 9U-CKK(f) 6183 | -4/Upper Caves | Discovered new exit (range 13) 6184 | -4/Upper Caves | Encountered a Master Thief 6219 | -4/Upper Caves | Discovered new exit (range 4) 6219 | -4/Upper Caves | Identified exit to Zhirov 6220 | -4/Upper Caves | Entered Zhirov 6220 | -4/Zhirov | Discovered new exit (range 3) 6225 | -4/Zhirov | Met Zhirov 6232 | -4/Zhirov | Zhirov requested help retrieving the SGEMP Prototype 6238 | -4/Zhirov | Found Alien Artifact 6238 | -4/Zhirov | Identified Integrated Dissipator 6238 | -4/Zhirov | Installed Integrated Dissipator, increased core heat dissipation (+20) 6243 | -4/Zhirov | Found Alien Artifact 6328 | -4/Zhirov | Identified exit to Proximity Caves 6329 | -4/Zhirov | Entered Proximity Caves 6435 | -3/Proximity Caves | Discovered new exit (range 13) 6437 | -3/Proximity Caves | Identified exit to Research 6437 | -3/Proximity Caves | Entered Research 6437 | -3/Research | Evolved 2 slots: Utility x2 6438 | -3/Research | Loaded intel: 117 machine locations 6497 | -3/Research | Found Exp. System Shield 6737 | -3/Research | Identified exit to Armory 6737 | -3/Research | Identified exit to Quarantine 6768 | -3/Research | Found Antimissile System 6779 | -3/Research | Entered Armory 6780 | -3/Armory | Loaded intel: 89 machine locations 6781 | -3/Armory | Identified Transdimensional Reconstructor 6781 | -3/Armory | Warped through subspace to slip node 6781 | -3/Armory | Discovered new exit (range 1) 6781 | -3/Armory | Identified exit to Lab 6782 | -3/Armory | Entered Lab 6782 | -3/Lab | Discovered new exit (range 9) 6785 | -3/Lab | Identified exit to Research 6786 | -3/Lab | Hidden lab's door opened automatically 6786 | -3/Lab | Sensor layout match revealed 6786 | -3/Lab | Decrypted terminal 6787 | -3/Lab | Gained access to the hidden lab's interior 6811 | -3/Lab | Decrypted terminal 6820 | -3/Lab | Found Prototype Protection 6820 | -3/Lab | Identified Hvy. Regenerative Plating 6825 | -3/Lab | Found Prototype Energy Cannon 6825 | -3/Lab | Identified Potential Cannon 6836 | -3/Lab | Found Alien Artifact 6836 | -3/Lab | Identified Core Expander 6836 | -3/Lab | Installed Core Expander, added new Propulsion slot 6844 | -3/Lab | Found Alien Artifact 6844 | -3/Lab | Identified Integrated Mediator 6844 | -3/Lab | Installed Integrated Mediator, increased core attachment efficiency. 6849 | -3/Lab | Found Transdimensional Reconstructor 6859 | -3/Lab | Found Prototype Hackware 6869 | -3/Lab | Decrypted terminal 6869 | -3/Lab | Acquired modification code for an L2 power cell 6873 | -3/Lab | Found Prototype Special Weapon 6892 | -3/Lab | Build established: Hacker-Scout 6904 | -3/Lab | Entered Research 6904 | -2/Research | Evolved 2 slots: Utility x1, Weapon x1 6905 | -2/Research | Identified exit to Testing 6906 | -2/Research | Loaded intel: 119 machine locations 6912 | -2/Research | Identified Deep Network Scanner 7110 | -2/Research | Found Quantum Capacitor 7127 | -2/Research | Entered Testing 7128 | -2/Testing | Loaded intel: 74 machine locations 7131 | -2/Testing | Found Exp. Transmission Jammer 7141 | -2/Testing | Found Prototype Ballistic Cannon 7156 | -2/Testing | Found Prototype Energy Cannon 7156 | -2/Testing | Identified Null Cannon 7169 | -2/Testing | Found Portable AFG 7183 | -2/Testing | Found Prototype Hackware 7248 | -2/Testing | Spotted Striker 7277 | -2/Testing | Discovered new exit (range 9) 7327 | -2/Testing | Identified Perforator 7337 | -2/Testing | Found Prototype Protection 7355 | -2/Testing | Identified exit to Access 7355 | -2/Testing | Entered Access 7355 | -1/Access | Evolved 2 slots: Utility x2 7355 | -1/Access | Identified System Mapper 7356 | -1/Access | Loaded intel: 118 machine locations 7447 | -1/Access | Spotted B-99 Colossus 7447 | -1/Access | Spotted B-99 Colossus 7476 | -1/Access | Discovered new exit (range 5) 7478 | -1/Access | Identified exit to Surface 7479 | *** | Escaped! Last Messages --------------- A-15 Conveyor 5x Centrium Greatsword A-15 Conveyor 6x Imp. Diametric Drive (2 escorts) >>Schematic(Enh. Nova Cannon) Downloading schematic... Enh. Nova Cannon Rating: 9 Schematic downloaded. >>Prototypes Downloading prototype IDs... Vortex Chain Reactor Exp. Gyrokinetic Inverter Exp. Biometal Medium Treads 07470_ Overheating: System interference. 07470_ Adv. Visual Processing Unit temporarily disabled. 07476_ Main Access Shell breached. 07476_ EXIT=FOUND 07478_ EXIT=IDENTIFIED: SURFACE Map ----- +----------------------------------------------------+ | ?????""??????????????????????????????????????????? | | ?????""??????????????????????????????????????????? | | ?????""??????????????????????"""?????????"???????? | | ?????T??????????????????????""T""????????""??????? | | ?????""?????????????????????""?""????????""??????? | | ?????""??????????????????????????????????""??????? | | ?????""??????????????????????????????????""??????? | | ?????????????????????????????????????????"T??????? | | ?????????????????????????????????????????""??????? | | ?????????????????????????????????????????""??????? | | ?????????????????????????????????????????""??????? | | ?????????????????????????????????????????""??????? | | ?????????????????????????????????????????"???????? | | ?????????????????????????????""??????????????????? | | ?????????????????????????????""??????????????????? | | ?????????????????????????????""??????????????????? | | ??????????????????????????????T??????????????????? | | ?????????????????????????????""??????????????????? | | ?????????""??????????????????""??????????????????? | | ?????????""??????????????????""??????????????????? | | ???????""""""???????""""""""""""#????????????????? | | ???????""""""?????????????? ##????????????????? | | ?????????""????????????????? ##????????????????? | | ?????????""????????????"""""" ##????????????????? | | ???????????????????????" " ##????????????????? | | ???????????????????????" @" " ##### # ?? | | ???????????????????????" "" #######+#########?? | | ???????????????????????" " ;## ##?? | | ???????????????????????"""""" # # ##?? | | ??????????????????????????? ##" * ##?? | | ?????????????????????""""""""""##" ##?? | | ?????????????????????""""""""""### "" ##?? | | ?????????????????????""""""""""### "" ##?? | | "?????"??????????????""""""""""?## """""" ##?? | | ""???"""????????????????????????## """""" ##?? | | "???"""????????????????? ????## "" ##?? | | ?????"????????????????? ???## "" ##?? | | ??????????????????????? ???## ##?? | | ??????????????????????? ???## * ##?? | | ""T""""???????????????? ???########+#######?? | | """"""""?????????????? ######### #######?? | | ??????????????????????## ############+##??????? | | ??????????????"""G"""? # # " + ??????? | | ??????????????"""?"""? # # """" ##??????? | | ?????????????????????? + + """"" ##??????? | | ?????????????????????? # # """"" ##??????? | | ??????????????????"??? # # """" ##??????? | | ????????????????""""?? # # " ##???!??? | | ???????????????"""""?? # # ##??????? | | ?? ???????????"""""? # # ##??????? | +----------------------------------------------------+ Best States ------------- Heat Dissipation 72 Coolant Potential 65 Energy Generation 35 Energy Capacity 360 Matter Stores 300 Matter Capacity 300 Sight Range 20 Robot Scan Range 16 Terrain Scan Range 16 Terrain Scan Density 10 Jamming Range 22 Corruption Block 15 Armor Coverage 450 Propulsion Shielding 66 Evasion (%) 76 Recoil Reduction 2 Energy Filtering 50 Offensive Hacking 57 Defensive Hacking 28 Item Schematics ----------------- Huge Storage Unit | -10/Materials | Hacked Sensor Array | -10/Materials | Hacked Hcp. Storage Unit | -10/Mines | Hacked Imp. Signal Interpreter | -8/Materials | Hacked Cesium-ion Thruster | -8/Materials | Scanalyzed Imp. Light Armor Plating | -8/Materials | Scanalyzed Imp. VTOL Module | -8/Materials | Scanalyzed Adv. Beam Rifle | -8/Materials | Scanalyzed Med. Storage Unit | -8/Materials | Scanalyzed Imp. Terrain Scanner | -8/Materials | Scanalyzed Mni. Grenade Launcher | -8/Materials | Scanalyzed Enh. Optical Array | -7/Factory | Hacked Combat Drone Bay | -7/Data Miner | Free Lgt. Regenerative Plating | -7/Data Miner | Free Biomechanical Wings | -7/Data Miner | Free Gravity Neutralizer | -7/Data Miner | Free Force Rifle | -7/Data Miner | Free Cmb. Gravmag System | -7/Data Miner | Free Imp. Component Analysis Suite | -7/Data Miner | Free Tesla Rifle | -7/Data Miner | Free Field Propulsion Drive | -7/Data Miner | Free Disruptor Cannon | -7/Data Miner | Free Rnf. Antimatter Reactor | -4/Factory | Hacked Imp. Plasma Cutter | -4/Factory | Scanalyzed Imp. Propulsion Shielding | -4/Factory | Scanalyzed Lgt. Deuterium Engine | -4/Factory | Scanalyzed Assault Drone Bay | -4/Zhirov | Free Exp. Heat Sink | -4/Zhirov | Free Exp. Optical Array | -4/Zhirov | Free Imp. Arc Thrower | -4/Zhirov | Free Micro-nuke Launcher | -2/Research | Scanalyzed Antimissile System | -2/Research | Scanalyzed Nuclear Pulse Array | -2/Research | Scanalyzed Adv. Target Analyzer | -2/Research | Scanalyzed Med. Regenerative Plating | -2/Testing | Hacked Enh. Nova Cannon | -1/Access | Hacked Robot Schematics ------------------ M-22 Extractor | -7/Data Miner | Free H-66 Slayer | -7/Data Miner | Free B-48 Gladiator | -7/Data Miner | Free Y-64 Sentinel | -7/Data Miner | Free S-27 Virus | -7/Data Miner | Free R-10 Processor | -7/Data Miner | Free A-15 Conveyor | -2/Testing | Archive R-06 Scavenger | -2/Testing | Archive Fabricated ------------ Nothing Alien Tech Used ----------------- Integrated Dissipator Transdimensional Reconstructor Core Expander Integrated Mediator Achievements -------------- Decrypted! Challenges ------------ None Game ------ Seed HugeMicrowarpPlating Manual? 0 Play Time 04:29:59 Cumulative 140.7 hours Start 2022.04.23 @ 16:44:59 End 2022.04.28 @ 08:41:44 Sessions 17 Manual Loads 0 Difficulty Rogue Special Mode None Game No. 26 Rogue 19 Adventurer 1 Explorer 6 Win Type 0 Total 7 Types 4/1/2/0/0/0/0/0/0 Lore% 71 Gallery% 65 Achievement% 62 Wizard Run 0 Options --------- ASCII 0 Keyboard 0 Movement Mouse Keybinds 0 Fullscreen 1 Font 18/SmallcapsGlow Map View 76x50 Tactical HUD 1 Map Filters NONE Filters NONE Steam 1 RUN: 8eca2923-24f1-4251-b055-0e0627b8b736